bitfinex/quotes_ETHUSD_20240907
["timestamp","ask_amount","ask_price","bid_price","bid_amount"]
[1725672882019,0.09032934,2233.3,2233.1,1.09493995]
[1725672882547,0.09032934,2233.3,2233.2,2.4265]
[1725672883422,4.47691,2233.7,2233.2,6.90435]
[1725672883625,0.09043241,2233.3,2233.2,6.90435]
[1725672883825,8.95389,2233.7,2233.2,6.90435]
[1725672884009,0.09043241,2233.3,2233.2,3.674235]
[1725672884210,4.4771,2233.6,2233.2,3.674235]
[1725672884444,0.09044529,2233.3,2233.2,3.674235]
[1725672884659,4.4771,2233.6,2233.2,3.674235]
[1725672886214,4.4771,2233.6,2233.3,1.2630185]
[1725672886616,0.09147605,2233.5,2233.3,1.2630185]
[1725672887462,8.95387,2233.7,2233.3,1.2630185]
[1725672887463,4.47691,2233.7,2233.3,1.2630185]
[1725672887616,0.09150181,2233.4,2233.3,1.2630185]
[1725672888132,8.95389,2233.7,2233.3,1.2630185]
[1725672888449,8.95389,2233.7,2233.4,0.81673885]
[1725672888450,0.09150181,2233.6,2233.4,0.81673885]
[1725672893351,0.09150181,2233.6,2233.3,1.2630185]
[1725672893552,4.88501,2233.5,2233.0,4.47819]
[1725672893754,4.88501,2233.5,2233.0,4.47817]
[1725672893936,0.09156621,2233.4,2233.0,4.47817]
[1725672894533,0.09156621,2233.4,2233.0,8.95634]
[1725672894876,0.09156621,2233.4,2233.1,1.20011692]
[1725672895363,0.09156621,2233.4,2233.1,5.67804692]
[1725672895566,0.09156621,2233.4,2233.2,2.2763]
[1725672895719,4.4771,2233.6,2233.2,2.2763]
[1725672895927,0.09143743,2233.3,2233.2,2.2763]
[1725672896136,4.4771,2233.6,2233.2,7.99739169]
[1725672896325,0.09143743,2233.3,2233.2,7.99739169]
[1725672896563,4.4771,2233.6,2233.2,7.99739169]
[1725672896858,4.4769,2233.7,2233.3,4.47766]
[1725672897061,0.09143743,2233.5,2233.3,4.47766]
[1725672897359,4.4769,2233.7,2233.3,4.47766]
[1725672897564,0.09143743,2233.4,2233.3,4.47766]
[1725672897724,4.4769,2233.7,2233.3,5.72516517]
[1725672898065,4.4769,2233.7,2233.3,4.47766]
[1725672898361,0.09143743,2233.6,2233.3,4.47766]
[1725672902866,0.09143743,2233.6,2233.2,6.75414]
[1725672903039,0.09143743,2233.6,2233.2,11.23192]
[1725672903465,4.56851743,2233.6,2233.2,6.75408]
[1725672904255,4.56851743,2233.6,2233.2,7.8773]
[1725672904459,0.09143743,2233.6,2233.2,12.35509]
[1725672904766,0.09143743,2233.6,2233.2,7.8773]
[1725672906224,0.09143743,2233.6,2232.8,10.42076664]
[1725672906425,0.09143743,2233.6,2233.2,4.47779]
[1725672906966,0.09143743,2233.6,2233.2,8.95558]
[1725672907281,0.09143743,2233.6,2233.2,8.95556]
[1725672907499,0.09143743,2233.6,2233.3,4.47755]
[1725672907668,4.47669,2233.8,2233.3,4.47755]
[1725672907868,0.09184538,2233.5,2233.3,4.47755]
[1725672908073,4.47669,2233.8,2233.3,5.373082]
[1725672908270,11.36087,2233.9,2233.4,4.47729]
[1725672909389,4.47667,2233.8,2233.4,4.47729]
[1725672909696,11.36079,2233.9,2233.4,4.47729]
[1725672909869,11.36076,2233.9,2233.4,4.47729]
[1725672910763,11.36077,2233.9,2233.4,4.47729]
[1725672911419,6.88418,2233.9,2233.4,4.47729]
[1725672911719,4.47577,2234.3,2233.4,4.47729]
[1725672911720,6.77002,2234.6,2234.0,2.4992]
[1725672911858,2.0,2234.7,2234.0,2.4992]
[1725672911859,4.47488,2234.7,2234.1,4.56547151]
[1725672912062,6.76969,2234.8,2234.3,6.97487]
[1725672912307,4.47479,2234.8,2234.3,11.45054]
[1725672912516,4.47441,2235.0,2234.4,4.56495788]
[1725672912658,1.29342821,2235.0,2234.5,4.47526]
[1725672912863,4.47509,2234.6,2234.3,2.4992]
[1725672913065,4.47509,2234.6,2234.1,6.97527]
[1725672913605,4.47509,2234.6,2233.6,4.47694]
[1725672913606,4.476,2234.2,2233.6,4.47694]
[1725672913762,4.476,2234.2,2233.7,4.47687]
[1725672914214,4.476,2234.2,2233.6,4.47694]
[1725672914370,4.476,2234.2,2233.6,9.80318912]
[1725672917218,4.476,2234.2,2233.7,4.47684]
[1725672920074,4.476,2234.2,2233.7,8.95368]
[1725672920428,4.47568,2234.3,2233.8,4.47666]
[1725672920605,8.95146,2234.3,2233.8,4.47666]
[1725672920922,0.08922828,2234.2,2233.8,4.47666]
[1725672921086,4.47568,2234.3,2233.8,4.47666]
[1725672921288,0.08922828,2234.1,2233.8,4.47666]
[1725672921505,4.47542,2234.5,2234.0,4.47627]
[1725672921803,2.0,2234.8,2233.9,6.97565]
[1725672921804,4.4757,2234.3,2233.9,6.97566]
[1725672922313,4.4757,2234.3,2233.9,2.4992]
[1725672923888,4.4757,2234.3,2234.0,0.08951492]
[1725672924239,4.4757,2234.3,2233.8,4.47664]
[1725672924416,4.4757,2234.3,2233.8,5.8531619]
[1725672926139,4.47587,2234.2,2233.8,5.8531619]
[1725672926345,4.47618,2234.1,2233.6,6.94932]
[1725672926548,4.47618,2234.1,2233.7,4.47686]
[1725672928038,4.47591,2234.2,2233.7,4.47686]
[1725672928356,0.09052998,2234.1,2233.7,4.47686]
[1725672930965,0.09052998,2234.1,2233.8,4.47666]
[1725672931259,4.47528,2234.5,2234.0,4.47627]
[1725672931466,4.47552,2234.4,2234.0,4.56578494]
[1725672932634,4.47587,2234.2,2233.9,2.4723]
[1725672933746,4.4757,2234.3,2233.9,2.4723]
[1725672933954,4.47593,2234.2,2233.8,4.47659]
[1725672934872,4.4757,2234.3,2233.8,9.04265129]
[1725672936025,8.95148,2234.3,2233.8,4.56606129]
[1725672936227,8.95148,2234.3,2233.8,4.47654]
[1725672937590,8.95149,2234.3,2233.8,4.56606137]
[1725672937869,4.47591,2234.2,2233.8,4.47654]
[1725672938046,8.95156,2234.3,2233.8,4.47654]
[1725672938439,4.47593,2234.2,2233.8,4.47654]
[1725672938645,4.47593,2234.2,2233.8,4.47651]
[1725672938854,4.47569,2234.3,2233.9,4.47643]
[1725672939072,4.47546,2234.5,2234.1,4.47607]
[1725672939278,4.47536,2234.5,2234.1,4.47607]
[1725672940236,4.47536,2234.5,2234.1,4.56549069]
[1725672940776,4.47536,2234.5,2234.1,4.47597]
[1725672941164,4.47536,2234.5,2233.8,1.142566]
[1725672941165,1.09352915,2234.5,2233.8,1.142566]
[1725672941331,1.09352915,2234.5,2233.7,4.47674]
[1725672941332,4.47605,2234.2,2233.7,6.94904]
[1725672941537,4.47605,2234.2,2233.8,4.47666]
[1725672941837,4.47581,2234.3,2233.9,4.47646]
[1725672942350,0.17379884,2234.2,2233.9,4.47646]
[1725672942582,4.4755,2234.4,2234.0,4.47617]
[1725672942755,0.17379884,2234.1,2234.0,4.47617]
[1725672942958,4.4755,2234.4,2234.0,4.47617]
[1725672943265,0.17379884,2234.1,2234.0,6.99878454]
[1725672943435,4.47539,2234.5,2234.0,12.53295845]
[1725672943771,0.17379884,2234.4,2234.0,11.38544]
[1725672945969,0.17379884,2234.4,2234.1,4.56555891]
[1725672946167,0.17379884,2234.4,2234.2,4.47586]
[1725672946345,4.47497,2234.7,2234.3,2.4331]
[1725672947047,8.94995,2234.7,2234.3,2.4331]
[1725672947444,4.47509,2234.6,2234.3,2.4331]
[1725672948637,4.47497,2234.7,2234.3,8.145689]
[1725672949277,11.22373,2234.9,2234.4,4.47546]
[1725672949477,4.47457,2234.9,2234.4,4.56496156]
[1725672950086,8.94915,2234.9,2234.4,4.56496156]
[1725672950378,4.47457,2234.9,2234.4,4.56496156]
[1725672950583,4.47457,2234.9,2234.4,5.82707591]
[1725672950879,4.47456,2234.9,2234.5,4.47525]
[1725672951087,8.94837,2235.1,2234.6,6.90816]
[1725672951249,8.94836,2235.1,2234.7,1.2367785]
[1725672951581,4.47417,2235.1,2234.7,1.14729026]
[1725672951782,8.94838,2235.1,2234.7,1.14729026]
[1725672952080,4.47429,2235.0,2234.7,1.14729026]
[1725672952239,4.47429,2235.0,2234.6,6.90816]
[1725672952666,4.47451,2234.9,2234.6,2.4331]
[1725672953010,4.47488,2234.7,2234.3,6.90861]
[1725672953303,4.47478,2234.8,2234.3,12.522582]
[1725672953505,8.94961,2234.8,2234.3,8.047062]
[1725672953668,4.47489,2234.7,2234.3,8.047062]
[1725672954511,8.94963,2234.8,2234.3,8.047062]
[1725672954661,4.47478,2234.8,2234.4,0.8047062]
[1725672955403,4.47478,2234.8,2234.4,0.89420296]
[1725672955974,4.47478,2234.8,2234.4,0.8047062]
[1725672956174,8.94955,2234.8,2234.4,0.8047062]
[1725672956394,4.47477,2234.8,2234.4,0.8047062]
[1725672956906,0.17441719,2234.7,2234.4,0.8047062]
[1725672957107,4.47477,2234.8,2234.4,0.8047062]
[1725672957108,8.94956,2234.8,2234.4,0.8047062]
[1725672957290,0.17441719,2234.6,2234.4,0.8047062]
[1725672957471,4.47477,2234.8,2234.5,0.60090292]
[1725672957672,0.17441719,2234.7,2234.4,0.8047062]
[1725672957869,4.47488,2234.7,2234.4,0.8047062]
[1725672958202,0.17441719,2234.6,2234.4,0.8047062]
[1725672960444,0.17441719,2234.6,2234.3,6.90861]
[1725672961125,4.64957719,2234.6,2234.3,2.4331]
[1725672961817,0.17441719,2234.6,2234.3,2.4331]
[1725672962341,0.17441719,2234.6,2234.3,6.99825146]
[1725672964419,4.47562,2234.4,2234.1,2.3322]
[1725672964812,0.17490669,2234.3,2234.1,2.3322]
[1725672965554,4.47562,2234.4,2234.1,2.3322]
[1725672965712,0.17488093,2234.2,2234.1,2.3322]
[1725672965918,4.47567,2234.3,2234.1,2.3322]
[1725672966127,0.17473925,2234.2,2233.9,19.67]
[1725672966368,4.47567,2234.3,2233.8,12.17562406]
[1725672966369,4.47635,2234.0,2233.8,2.3322]
[1725672966655,4.65083925,2234.1,2233.6,8.20012864]
[1725672966860,4.65083925,2234.1,2233.7,3.89967075]
[1725672966861,0.17471349,2233.9,2233.7,3.89967075]
[1725672967150,4.4761,2234.1,2233.6,8.20012864]
[1725672967151,0.17471349,2233.8,2233.6,8.20012864]
[1725672967358,4.4761,2234.1,2233.7,3.8996634]
[1725672967557,0.17471349,2233.7,2233.6,7.75062864]
[1725672967801,4.4761,2234.1,2233.7,4.47685]
[1725672967947,4.47602,2234.2,2233.7,4.56637588]
[1725672968272,0.17430122,2234.0,2233.8,4.47667]
[1725672968466,8.95201,2234.2,2233.7,4.56638588]
[1725672968673,4.47707,2233.7,2233.4,3.27366864]
[1725672968853,4.47719,2233.6,2233.2,22.94366864]
[1725672969058,4.47719,2233.6,2233.2,22.0022]
[1725672969059,4.65149122,2233.6,2233.2,22.0022]
[1725672969550,4.65149122,2233.6,2233.2,26.48006]
[1725672969949,0.17430122,2233.6,2233.2,26.48006]
[1725672970277,4.65155122,2233.6,2233.2,22.0022]
[1725672970483,4.47778,2233.3,2233.0,3.27366864]
[1725672970796,4.4776,2233.4,2232.8,22.94366864]
[1725672970797,4.65181751,2233.2,2232.8,22.94366864]
[1725672970995,4.65181751,2233.2,2232.9,1.56044697]
[1725672971162,4.4781,2233.1,2232.7,5.42033864]
[1725672971354,4.65085502,2233.1,2232.6,7.75273864]
[1725672971555,4.65085502,2233.1,2232.6,6.81127]
[1725672971774,4.4781,2233.1,2232.6,6.81127]
[1725672972088,0.17275502,2233.0,2232.6,6.81127]
[1725672972287,0.17275502,2233.0,2232.7,4.47887]
[1725672972485,6.82269,2233.2,2232.7,8.95765]
[1725672972652,4.47789,2233.2,2232.7,10.5324008]
[1725672972983,0.17232959,2233.1,2232.7,10.5324008]
[1725672973851,0.17232959,2233.1,2232.7,6.0535308]
[1725672974959,0.17232959,2233.1,2232.8,4.47867]
[1725672975499,0.17232959,2233.1,2232.7,10.5322908]
[1725672976830,0.17232959,2233.1,2232.7,6.0535108]
[1725672979211,0.17232959,2233.1,2233.0,4.47828]
[1725672979414,4.47729,2233.5,2233.0,6.90003186]
[1725672979652,0.17220065,2233.1,2233.0,6.90003186]
[1725672979856,4.47729,2233.5,2233.0,6.90003186]
[1725672980217,0.17220065,2233.4,2233.0,6.90003186]
[1725672984164,4.64968065,2233.4,2233.0,6.90003186]
[1725672985020,0.17220065,2233.4,2233.0,6.90003186]
[1725672985220,4.64969065,2233.4,2233.0,6.90003186]
[1725672985542,4.64969065,2233.4,2233.0,6.81048]
[1725672985859,4.64969065,2233.4,2233.0,6.90003134]
[1725672986227,0.17220065,2233.4,2233.1,4.47806]
[1725672986429,0.17220065,2233.4,2233.1,0.08955123]
[1725672988070,0.17220065,2233.4,2233.1,4.56762123]
[1725672991746,0.17220065,2233.4,2233.1,0.08955123]
[1725672993085,0.17220065,2233.4,2233.3,11.26984]
[1725672993378,6.89511,2233.9,2233.4,4.47735]
[1725672993582,4.47661,2233.9,2233.5,4.56679435]
[1725672994059,4.47668,2233.8,2233.4,4.47735]
[1725672994232,4.47668,2233.8,2233.3,6.79215]
[1725672995171,4.47668,2233.8,2233.3,7.63072108]
[1725672995871,4.47668,2233.8,2233.4,0.08953435]
[1725672996373,4.47668,2233.8,2233.2,4.4777]
[1725672996374,6.89539,2233.7,2233.2,4.4777]
[1725672996947,4.47719,2233.6,2233.1,26.9462918]
[1725672997148,4.47719,2233.6,2233.2,2.06027932]
[1725672997336,4.47717,2233.6,2233.2,2.06027932]
[1725672997689,4.47757,2233.4,2233.1,19.67]
[1725672997901,4.47757,2233.4,2233.0,4.47827]
[1725673000503,4.47809,2233.1,2232.6,11.21869542]
[1725673000670,4.47809,2233.1,2232.5,4.47917]
[1725673000671,6.89687,2233.0,2232.5,4.47917]
[1725673001290,2.4185,2233.0,2232.6,4.47907]
[1725673001507,4.47809,2233.1,2232.6,4.47907]
[1725673001667,4.47809,2233.1,2232.7,4.47887]
[1725673001863,0.17176238,2233.0,2232.7,4.47887]
[1725673004686,0.17176238,2233.0,2232.7,11.37554]
[1725673004888,4.47788,2233.2,2232.8,4.47865]
[1725673005184,0.17176238,2233.1,2232.8,4.47865]
[1725673006511,0.17176238,2233.1,2232.9,4.47847]
[1725673006822,4.47783,2233.3,2232.9,4.56803599]
[1725673006999,0.17133685,2233.0,2232.9,4.56803599]
[1725673007198,4.47783,2233.3,2232.9,4.56803599]
[1725673007511,6.78606,2233.4,2233.0,4.47824]
[1725673007713,7.912407,2233.4,2233.0,4.47824]
[1725673009153,2.3085,2233.4,2233.0,4.47818]
[1725673009449,4.94658275,2233.5,2233.1,4.56752666]
[1725673009654,9.42400275,2233.5,2233.1,0.08955666]
[1725673009812,4.94658275,2233.5,2233.0,8.95648]
[1725673010147,9.42397275,2233.5,2233.0,4.47824]
[1725673010362,4.94656275,2233.5,2233.0,8.95643]
[1725673010514,4.94656275,2233.5,2233.1,0.08955077]
[1725673010709,4.47739,2233.5,2233.0,8.95643]
[1725673011142,8.95478,2233.5,2233.0,4.47819]
[1725673012127,4.47739,2233.5,2233.1,4.56762079]
[1725673012551,8.95477,2233.5,2233.1,0.08955079]
[1725673012746,8.95477,2233.5,2233.0,4.47818]
[1725673013163,8.95477,2233.5,2233.1,0.08955081]
[1725673016048,4.47755,2233.4,2233.0,4.47818]
[1725673016363,4.47755,2233.4,2233.0,4.56773091]
[1725673016545,4.4779,2233.2,2232.8,5.41997864]
[1725673016868,4.4779,2233.2,2232.9,1.56047699]
[1725673017073,4.4779,2233.2,2232.8,4.47851]
[1725673017242,0.17147871,2233.1,2232.9,1.56053751]
[1725673017431,0.17147871,2233.1,2232.8,4.47851]
[1725673017630,4.4779,2233.2,2232.9,1.56053952]
[1725673017829,0.17147871,2233.0,2232.8,4.47851]
[1725673018081,4.4779,2233.2,2232.9,1.56053264]
[1725673018368,4.4779,2233.2,2232.8,4.47851]
[1725673018877,4.4779,2233.2,2232.9,1.56049279]
[1725673019074,4.4779,2233.2,2232.8,5.41997864]
[1725673019269,4.4779,2233.2,2232.9,1.56048398]
[1725673019571,6.7862,2233.3,2232.8,9.98812961]
[1725673019866,4.4777,2233.3,2232.9,3.90127608]
[1725673020088,4.4777,2233.3,2233.0,1.56043545]
[1725673020415,4.4779,2233.2,2232.8,5.41997864]
[1725673020574,4.4779,2233.2,2232.9,1.56050759]
[1725673020768,4.4779,2233.2,2232.8,5.41997864]
[1725673020937,4.47771,2233.3,2232.9,3.9012471]
[1725673021133,4.47771,2233.3,2232.9,4.47838]
[1725673021444,6.78588,2233.5,2233.1,4.47797]
[1725673021445,4.47738,2233.5,2233.1,4.47797]
[1725673021650,4.47703,2233.7,2233.2,4.47786]
[1725673021651,4.47713,2233.6,2233.2,4.47786]
[1725673022034,4.47713,2233.6,2233.1,4.47804]
[1725673022272,4.47727,2233.5,2233.1,4.47804]
[1725673022568,8.95431,2233.6,2233.1,5.64914196]
[1725673022878,4.4773,2233.5,2233.1,5.64914196]
[1725673023351,4.4773,2233.5,2233.1,5.7386929]
[1725673024047,4.47713,2233.6,2233.1,10.2166429]
[1725673024264,8.95433,2233.6,2233.1,5.7386729]
[1725673025229,4.47729,2233.5,2233.1,5.64912196]
[1725673026050,4.47729,2233.5,2233.1,5.73867292]
[1725673027269,4.47729,2233.5,2233.1,10.21661292]
[1725673027484,9.38109183,2234.3,2233.1,10.21661292]
[1725673027485,8.95287,2234.0,2233.5,4.47714]
[1725673027708,4.47641,2234.0,2233.5,4.47714]
[1725673027988,4.47641,2234.0,2233.6,6.89547]
[1725673028342,4.47637,2234.0,2233.6,6.89547]
[1725673028656,8.95274,2234.0,2233.6,6.89547]
[1725673028867,4.47651,2233.9,2233.6,2.4184]
[1725673029073,4.47651,2233.9,2233.5,4.47724]
[1725673029781,5.9153321,2234.0,2233.5,4.56677451]
[1725673029782,5.9153221,2234.0,2233.5,4.56677451]
[1725673029944,8.95273,2234.0,2233.5,4.56677451]
[1725673030147,8.95273,2234.0,2233.5,4.47724]
[1725673030483,4.47636,2234.0,2233.5,4.56677451]
[1725673031145,2.3072,2234.1,2233.5,0.08953451]
[1725673031486,4.4758,2234.3,2233.8,8.95312]
[1725673031839,0.17222648,2234.2,2233.8,8.95312]
[1725673032043,4.4758,2234.3,2233.8,8.95312]
[1725673032264,0.17222648,2234.1,2233.9,4.56597149]
[1725673032485,4.4756,2234.4,2233.9,4.47645]
[1725673032653,0.17240692,2234.0,2233.9,4.47645]
[1725673032859,5.50557417,2234.4,2233.9,4.47645]
[1725673033054,0.1724198,2234.0,2233.9,4.47645]
[1725673033259,5.50557417,2234.4,2233.9,4.47645]
[1725673033455,0.1724198,2234.0,2233.8,8.95312]
[1725673033761,0.1724198,2233.9,2233.8,8.95312]
[1725673034092,4.47569,2234.3,2233.8,10.13959296]
[1725673034288,0.17254868,2233.9,2233.8,4.47655]
[1725673034583,4.47569,2234.3,2233.9,4.47646]
[1725673035087,4.4756,2234.4,2234.0,2.4184]
[1725673035088,8.95123,2234.4,2234.0,2.4184]
[1725673035492,4.4756,2234.4,2234.0,2.4184]
[1725673035696,8.95122,2234.4,2234.0,2.4184]
[1725673035880,5.601442,2234.4,2234.0,2.4184]
[1725673036455,4.47568,2234.3,2234.0,2.4184]
[1725673036759,5.601442,2234.4,2234.0,6.89457]
[1725673036760,4.4756,2234.4,2234.0,6.89457]
[1725673037397,4.47528,2234.5,2234.0,6.98408326]
[1725673038919,4.47489,2234.7,2234.2,4.47578]
[1725673039219,10.94956,2234.8,2234.3,7.78923]
[1725673039577,10.94956,2234.8,2234.3,6.89406]
[1725673039896,10.94956,2234.8,2234.3,6.89397]
[1725673039897,4.47467,2234.8,2234.3,6.89397]
[1725673041609,4.47467,2234.8,2234.3,11.36955]
[1725673041775,4.47452,2234.9,2234.4,4.56478239]
[1725673043219,8.9491,2234.9,2234.5,2.3562]
[1725673043419,9.84405,2234.9,2234.5,2.3562]
[1725673043732,9.84401,2234.9,2234.5,2.3562]
[1725673043926,4.47452,2234.9,2234.5,2.3562]
[1725673044157,4.47471,2234.8,2234.5,2.3562]
[1725673044333,4.47471,2234.8,2234.3,6.83176]
[1725673044753,4.47471,2234.8,2234.3,11.30733]
[1725673045475,4.47471,2234.8,2234.3,6.83176]
[1725673045757,4.47471,2234.8,2234.4,0.683176]
[1725673046466,4.47487,2234.7,2234.3,6.83176]
[1725673046773,0.17424973,2234.6,2234.3,6.83176]
[1725673046973,4.47469,2234.8,2234.3,11.30734]
[1725673047143,0.17424973,2234.7,2234.3,11.30734]
[1725673047334,4.47469,2234.8,2234.3,11.30734]
[1725673047523,0.17424973,2234.7,2234.3,12.438074]
[1725673047727,8.11280727,2234.9,2234.4,4.56494608]
[1725673047929,0.17424973,2234.8,2234.5,6.83141]
[1725673048161,4.47429,2235.0,2234.6,0.08949095]
[1725673048339,0.17423685,2234.9,2234.6,1.22912605]
[1725673050160,4.64873685,2234.9,2234.6,1.22912605]
[1725673050369,4.64873685,2234.9,2234.5,2.3562]
[1725673051895,4.4747,2234.8,2234.5,2.3562]
[1725673052301,0.17495823,2234.7,2234.6,0.08949228]
[1725673052619,4.4745,2234.9,2234.5,6.92093243]
[1725673052816,0.17495823,2234.7,2234.5,6.92093243]
[1725673053128,4.47475,2234.8,2234.5,2.3562]
[1725673053407,3.63828727,2234.9,2234.2,22.0262]
[1725673053408,4.47517,2234.6,2234.2,22.0262]
[1725673054109,0.17495823,2234.5,2234.2,22.0262]
[1725673055231,0.17495823,2234.5,2234.2,26.50207]
[1725673055429,0.17495823,2234.5,2234.2,22.0262]
[1725673056029,4.65024823,2234.5,2234.2,22.0262]
[1725673057832,4.65024823,2234.5,2234.2,2.3562]
[1725673058331,0.17495823,2234.5,2234.2,2.3562]
[1725673058535,0.17495823,2234.5,2234.2,3.487043]
[1725673064229,0.17495823,2234.5,2234.2,7.962793]
[1725673064530,0.17480367,2234.4,2234.2,7.962793]
[1725673064736,5.99046989,2234.7,2234.2,7.962793]
[1725673064927,0.17480367,2234.6,2234.2,6.83195]
[1725673066540,0.17480367,2234.6,2234.3,0.08950011]
[1725673068142,4.64990367,2234.6,2234.2,2.3562]
[1725673069135,4.47529,2234.5,2234.2,2.3562]
[1725673069536,0.17479077,2234.4,2234.2,2.3562]
[1725673072341,0.17479077,2234.4,2234.0,6.85385]
[1725673072556,0.17479077,2234.4,2234.1,4.47606]
[1725673072761,0.17479077,2234.4,2234.0,6.85385]
[1725673073107,4.47529,2234.5,2234.0,11.33003]
[1725673073265,4.47529,2234.5,2234.0,6.85378]
[1725673073449,0.17466196,2234.4,2234.0,11.32996]
[1725673073648,4.47529,2234.5,2234.0,11.32996]
[1725673074070,0.17466196,2234.4,2234.0,11.32996]
[1725673074404,4.47508,2234.6,2234.1,6.05156454]
[1725673074759,4.47508,2234.6,2234.2,2.3776]
[1725673075155,0.17464908,2234.5,2234.2,2.3776]
[1725673077966,0.17464908,2234.5,2234.2,6.85338]
[1725673078305,8.94994,2234.7,2234.2,6.85338]
[1725673078610,4.64975908,2234.6,2234.2,6.85338]
[1725673078815,4.64975908,2234.6,2234.2,2.3776]
[1725673081587,4.4753,2234.5,2234.2,2.3776]
[1725673081915,0.17459758,2234.4,2234.2,2.3776]
[1725673082283,4.47534,2234.5,2234.2,2.3776]
[1725673082581,4.47534,2234.5,2234.1,4.47606]
[1725673082782,4.47547,2234.4,2234.0,3.31906864]
[1725673083020,4.65006758,2234.4,2234.1,3.89902588]
[1725673083224,4.65006758,2234.4,2234.0,7.79532864]
[1725673083444,4.65006758,2234.4,2234.1,4.11900496]
[1725673083580,4.47567,2234.3,2234.0,3.31906864]
[1725673083933,4.47567,2234.3,2233.7,0.94146864]
[1725673083934,4.47636,2234.0,2233.7,0.94146864]
[1725673084228,4.47647,2233.9,2233.6,0.94146864]
[1725673084437,4.47668,2233.8,2233.7,1.5599249]
[1725673084589,4.65127758,2233.8,2233.7,1.5599249]
[1725673085293,0.17459758,2233.8,2233.5,20.61146864]
[1725673085496,0.17459758,2233.8,2233.6,3.89982442]
[1725673085835,4.65127758,2233.8,2233.5,20.61146864]
[1725673085987,4.65127758,2233.8,2233.6,3.89984992]
[1725673086192,4.65127758,2233.8,2233.5,20.61146864]
[1725673086489,4.65127758,2233.8,2233.6,3.89983905]
[1725673086732,4.65127758,2233.8,2233.5,20.61146864]
[1725673086930,4.65127758,2233.8,2233.6,3.8998343]
[1725673087232,4.65127758,2233.8,2233.5,0.94146864]
[1725673087432,4.47767,2233.3,2233.2,1.39096864]
[1725673087635,4.47797,2233.2,2233.0,0.94146864]
[1725673087854,5.99353989,2233.2,2232.9,0.94146864]
[1725673087993,4.47848,2232.9,2232.5,2.3536716]
[1725673088347,4.47848,2232.9,2232.3,4.34453358]
[1725673088348,4.47893,2232.7,2232.3,3.41766864]
[1725673088632,4.47893,2232.7,2232.3,2.4762]
[1725673088797,0.17290917,2232.6,2232.3,3.40715916]
[1725673089233,4.65216917,2232.6,2232.3,0.93095916]
[1725673089548,4.65216917,2232.6,2232.1,2.4762]
[1725673090241,4.65216917,2232.6,2232.2,1.56077769]
[1725673090446,4.65216917,2232.6,2232.3,0.08958444]
[1725673090447,0.17290917,2232.6,2232.3,0.08958444]
[1725673090737,0.17290917,2232.6,2232.2,0.08958435]
[1725673090897,0.17290917,2232.6,2232.1,6.95627]
[1725673091223,4.65201917,2232.6,2232.1,6.95627]
[1725673091408,4.65201917,2232.6,2232.2,0.08958441]
[1725673091600,4.65201917,2232.6,2232.1,6.95627]
[1725673091804,4.65201917,2232.6,2232.1,2.4762]
[1725673095836,0.17290917,2232.6,2232.1,2.4762]
[1725673096043,8.95719,2232.9,2232.4,4.47946]
[1725673096224,8.95719,2232.9,2232.5,0.08957336]
[1725673096853,8.95717,2232.9,2232.5,0.08957336]
[1725673097226,4.4787,2232.8,2232.5,0.08957336]
[1725673097632,8.95723,2232.9,2232.5,0.08957336]
[1725673098965,8.95721,2232.9,2232.5,0.08957336]
[1725673099948,4.47871,2232.8,2232.5,0.08957336]
[1725673101436,4.47871,2232.8,2232.5,0.7940967]
[1725673104680,4.47871,2232.8,2232.5,0.08957336]
[1725673104875,4.47871,2232.8,2232.4,6.95566]
[1725673105084,4.47871,2232.8,2232.5,0.08957375]
[1725673105534,4.47871,2232.8,2232.4,6.95566]
[1725673105734,4.47871,2232.8,2232.4,2.4762]
[1725673106046,4.47871,2232.8,2232.5,0.08957377]
[1725673106246,4.47871,2232.8,2232.4,2.4762]
[1725673106467,4.47871,2232.8,2232.5,0.08957378]
[1725673106876,0.17031793,2232.7,2232.4,2.4762]
[1725673107085,4.47871,2232.8,2232.4,2.4762]
[1725673107294,0.17031793,2232.6,2232.4,2.4762]
[1725673107594,4.4795,2232.4,2232.1,26.51078542]
[1725673107745,4.64978793,2232.5,2232.1,22.0855]
[1725673107948,0.17027922,2232.3,2232.1,22.0855]
[1725673108186,4.47939,2232.5,2232.1,22.0855]
[1725673108387,0.1647391,2232.2,2232.1,22.0855]
[1725673108549,4.47939,2232.5,2232.1,22.0855]
[1725673108744,0.15937927,2232.2,2232.1,22.0855]
[1725673108975,4.47939,2232.5,2232.1,22.0855]
[1725673109489,0.15937927,2232.4,2232.1,22.0855]
[1725673110391,0.15937927,2232.4,2232.2,0.08958657]
[1725673110757,0.15937927,2232.4,2232.1,22.0855]
[1725673112485,0.15937927,2232.4,2232.2,0.08958666]
[1725673112651,0.15937927,2232.4,2232.1,22.0855]
[1725673116002,0.15937927,2232.4,2232.2,0.22024259]
[1725673116315,0.15937927,2232.4,2232.1,22.0855]
[1725673116519,0.15937927,2232.4,2232.2,0.22024701]
[1725673116676,0.15937927,2232.4,2232.1,22.0855]
[1725673117009,0.15937927,2232.4,2232.2,0.22025798]
[1725673117214,0.15937927,2232.4,2232.3,0.22025798]
[1725673118089,0.15937927,2232.4,2232.3,0.653083]
[1725673121008,0.15937927,2232.4,2232.3,0.65308004]
[1725673121212,0.15937927,2232.4,2232.1,22.0855]
[1725673121426,0.15937927,2232.4,2232.2,0.65307639]
[1725673121717,0.15937927,2232.4,2232.3,0.220248]
[1725673122291,0.15937927,2232.4,2232.1,22.0855]
[1725673122494,0.15937927,2232.4,2232.2,0.65307999]
[1725673122695,0.15937927,2232.4,2232.3,0.22024666]
[1725673123650,4.47981,2232.3,2231.7,2.316]
[1725673123828,4.48017,2232.1,2231.8,0.65329813]
[1725673123988,4.48017,2232.1,2231.9,0.22033221]
[1725673124188,2.3373,2232.4,2232.0,0.22033221]
[1725673124393,2.3373,2232.4,2232.1,0.22033221]
[1725673124643,5.99758177,2232.5,2232.0,0.08958961]
[1725673124793,5.99758177,2232.5,2232.1,0.22027347]
[1725673125143,1.51816177,2232.3,2232.0,1.13920932]
[1725673125347,1.51816177,2232.3,2232.1,0.22030191]